[Event "Early-Titled-Tuesday-Blitz-April-23-2024"]
[Site "Chess.com"]
[Date "2024.04.23"]
[Round "5"]
[White "ValentinDragnev"]
[Black "kecalk"]
[Result "1-0"]
[WhiteElo "2737"]
[BlackElo "2520"]
[TimeControl "180+1"]
[EndTime "8:58:29 PDT"]
[Termination "ValentinDragnev won on time"]

1. d4 {[%clk 0:02:53.6]} 1... d5 {[%clk 0:02:58.8]} 2. Nf3 {[%clk 0:02:54.5]}
2... Nf6 {[%clk 0:02:57.2]} 3. Bf4 {[%clk 0:02:54.4]} 3... c5 {[%clk 0:02:54.6]}
4. e3 {[%clk 0:02:53.7]} 4... Nc6 {[%clk 0:02:53]} 5. Nbd2 {[%clk 0:02:53.3]}
5... cxd4 {[%clk 0:02:50]} 6. exd4 {[%clk 0:02:54.2]} 6... Bf5 {[%clk
0:02:50.5]} 7. Bb5 {[%clk 0:02:51.9]} 7... Qb6 {[%clk 0:02:48.8]} 8. c4 {[%clk
0:02:51.4]} 8... dxc4 {[%clk 0:02:48.4]} 9. a4 {[%clk 0:02:47.2]} 9... Bd3
{[%clk 0:02:47.2]} 10. Ne5 {[%clk 0:02:42.5]} 10... e6 {[%clk 0:02:46.8]} 11.
Ndxc4 {[%clk 0:02:32.7]} 11... Bxc4 {[%clk 0:02:47.7]} 12. Nxc4 {[%clk
0:02:32.2]} 12... Bb4+ {[%clk 0:02:47.9]} 13. Bd2 {[%clk 0:02:06]} 13... Bxd2+
{[%clk 0:02:41.3]} 14. Qxd2 {[%clk 0:02:06.9]} 14... Qc7 {[%clk 0:02:36.2]} 15.
Qb4 {[%clk 0:02:04.6]} 15... O-O-O {[%clk 0:01:38]} 16. Bxc6 {[%clk 0:01:58.1]}
16... Qxc6 {[%clk 0:01:34.8]} 17. O-O {[%clk 0:01:39.8]} 17... Rxd4 {[%clk
0:01:16.4]} 18. Rac1 {[%clk 0:01:39.3]} 18... Kb8 {[%clk 0:01:16]} 19. Qc3
{[%clk 0:01:21.9]} 19... Rg4 {[%clk 0:01:12.9]} 20. Qe5+ {[%clk 0:01:17.6]}
20... Ka8 {[%clk 0:01:09.2]} 21. Ne3 {[%clk 0:01:16]} 21... Re4 {[%clk
0:00:51.8]} 22. Qg5 {[%clk 0:01:16]} 22... Qe8 {[%clk 0:00:41.4]} 23. Qxg7
{[%clk 0:01:13.6]} 23... Nd5 {[%clk 0:00:39.4]} 24. Nc4 {[%clk 0:00:41.6]} 24...
Rg8 {[%clk 0:00:30.1]} 25. Nd6 {[%clk 0:00:41.9]} 25... Qb8 {[%clk 0:00:14.6]}
26. Qxf7 {[%clk 0:00:41.9]} 26... Rf4 {[%clk 0:00:14.6]} 27. Qxe6 {[%clk
0:00:34.1]} 27... Rf6 {[%clk 0:00:14.6]} 28. Qxd5 {[%clk 0:00:30.8]} 28... Rxd6
{[%clk 0:00:15.3]} 29. Qe4 {[%clk 0:00:28]} 29... Rdg6 {[%clk 0:00:14.7]} 30. g3
{[%clk 0:00:28.1]} 30... Re8 {[%clk 0:00:10.3]} 31. Qh4 {[%clk 0:00:25.2]} 31...
Rg7 {[%clk 0:00:07.3]} 32. Rfe1 {[%clk 0:00:23.6]} 32... a6 {[%clk 0:00:04]} 33.
Qh5 {[%clk 0:00:21.1]} 33... Rxe1+ {[%clk 0:00:02.4]} 34. Rxe1 {[%clk 0:00:22]}
34... Qd6 {[%clk 0:00:02.1]} 35. Qe8+ {[%clk 0:00:15.3]} 35... Ka7 {[%clk
0:00:02.1]} 36. Qe3+ {[%clk 0:00:16.2]} 36... b6 {[%clk 0:00:02.5]} 37. a5
{[%clk 0:00:14.2]} 37... Rb7 {[%clk 0:00:01.9]} 38. axb6+ {[%clk 0:00:13.4]}
38... Rxb6 {[%clk 0:00:02.2]} 39. Rc1 {[%clk 0:00:08.9]} 39... Qd7 {[%clk
0:00:01.6]} 40. Qe4 {[%clk 0:00:08.1]} 40... Rb7 {[%clk 0:00:02]} 41. Qe3+
{[%clk 0:00:08.1]} 41... Kb8 {[%clk 0:00:02.4]} 42. h4 {[%clk 0:00:08.6]} 42...
Ka8 {[%clk 0:00:02]} 43. Qf4 {[%clk 0:00:08.4]} 43... Ka7 {[%clk 0:00:02.2]} 44.
Qe3+ {[%clk 0:00:08.5]} 44... Kb8 {[%clk 0:00:02.1]} 45. Qh6 {[%clk 0:00:09]}
45... Ka7 {[%clk 0:00:02.1]} 46. Ra1 {[%clk 0:00:09.4]} 46... Rb6 {[%clk
0:00:02.1]} 47. Qe3 {[%clk 0:00:10.1]} 47... Qb7 {[%clk 0:00:01.8]} 48. b4
{[%clk 0:00:10.4]} 48... Kb8 {[%clk 0:00:01.9]} 49. Qf4+ {[%clk 0:00:10.3]}
49... Ka7 {[%clk 0:00:02.2]} 50. Rb1 {[%clk 0:00:10.4]} 50... Rc6 {[%clk
0:00:01.8]} 51. Qd4+ {[%clk 0:00:10.7]} 51... Kb8 {[%clk 0:00:01.7]} 52. Qf4+
{[%clk 0:00:10.7]} 52... Ka7 {[%clk 0:00:02]} 53. Ra1 {[%clk 0:00:11.2]} 53...
Qb5 {[%clk 0:00:01.6]} 54. Qd4+ {[%clk 0:00:11.6]} 54... Rb6 {[%clk 0:00:01.5]}
55. Re1 {[%clk 0:00:11.8]} 1-0

[Event "Early-Titled-Tuesday-Blitz-April-23-2024"]
[Site "Chess.com"]
[Date "2024.04.23"]
[Round "5"]
[White "Fernando_Offermann"]
[Black "Hope_6"]
[Result "1-0"]
[WhiteElo "2466"]
[BlackElo "2662"]
[TimeControl "180+1"]
[EndTime "8:58:31 PDT"]
[Termination "Fernando_Offermann won by checkmate"]

1. Nf3 {[%clk 0:03:00]} 1... d5 {[%clk 0:02:58.4]} 2. g3 {[%clk 0:03:00.1]} 2...
Bg4 {[%clk 0:02:58]} 3. Bg2 {[%clk 0:03:00.2]} 3... Nd7 {[%clk 0:02:57.7]} 4. d4
{[%clk 0:03:00]} 4... Ngf6 {[%clk 0:02:56.6]} 5. O-O {[%clk 0:02:59.8]} 5... e6
{[%clk 0:02:56.5]} 6. c4 {[%clk 0:03:00.2]} 6... c5 {[%clk 0:02:54]} 7. cxd5
{[%clk 0:03:00.3]} 7... exd5 {[%clk 0:02:51]} 8. Nc3 {[%clk 0:02:56.5]} 8... Be7
{[%clk 0:02:48.6]} 9. h3 {[%clk 0:02:52.5]} 9... Bh5 {[%clk 0:02:47.1]} 10. Bf4
{[%clk 0:02:51.7]} 10... O-O {[%clk 0:02:45.2]} 11. Rc1 {[%clk 0:02:49.9]} 11...
Rc8 {[%clk 0:02:34.2]} 12. g4 {[%clk 0:02:47.5]} 12... Bg6 {[%clk 0:02:31.1]}
13. Ne5 {[%clk 0:02:47.8]} 13... cxd4 {[%clk 0:02:20.8]} 14. Qxd4 {[%clk
0:02:45]} 14... Bc5 {[%clk 0:02:16]} 15. Qa4 {[%clk 0:02:41.6]} 15... d4 {[%clk
0:01:51.2]} 16. Nb5 {[%clk 0:02:32.6]} 16... Nxe5 {[%clk 0:01:37.2]} 17. Bxe5
{[%clk 0:02:31.6]} 17... a6 {[%clk 0:01:32.8]} 18. Nxd4 {[%clk 0:02:25.8]} 18...
b5 {[%clk 0:01:25.2]} 19. Qd1 {[%clk 0:02:23.7]} 19... Qe7 {[%clk 0:01:22.6]}
20. Nf3 {[%clk 0:02:23.7]} 20... Rfd8 {[%clk 0:01:21.5]} 21. Qb3 {[%clk
0:02:23.6]} 21... Ne4 {[%clk 0:01:15.5]} 22. e3 {[%clk 0:02:09.6]} 22... Kh8
{[%clk 0:00:48.7]} 23. Rcd1 {[%clk 0:01:58.9]} 23... f6 {[%clk 0:00:40]} 24. Bd4
{[%clk 0:01:58.7]} 24... Bf7 {[%clk 0:00:38.4]} 25. Qd3 {[%clk 0:01:57.1]} 25...
Bc4 {[%clk 0:00:36.4]} 26. Qb1 {[%clk 0:01:57.1]} 26... Bxf1 {[%clk 0:00:34.7]}
27. Rxf1 {[%clk 0:01:57]} 27... Bxd4 {[%clk 0:00:33.8]} 28. exd4 {[%clk
0:01:56.2]} 28... Re8 {[%clk 0:00:22.4]} 29. Re1 {[%clk 0:01:55.8]} 29... Nd2
{[%clk 0:00:16.8]} 30. Rxe7 {[%clk 0:01:45]} 30... Nxb1 {[%clk 0:00:16.7]} 31.
Ra7 {[%clk 0:01:45.5]} 31... Re6 {[%clk 0:00:15.1]} 32. d5 {[%clk 0:01:42.6]}
32... Rd6 {[%clk 0:00:14.8]} 33. Nd4 {[%clk 0:01:43.1]} 33... Nd2 {[%clk
0:00:13.1]} 34. Nf5 {[%clk 0:01:42.5]} 34... Rdd8 {[%clk 0:00:12.3]} 35. Rxa6
{[%clk 0:01:42.1]} 35... Nc4 {[%clk 0:00:12.4]} 36. b3 {[%clk 0:01:42]} 36...
Ne5 {[%clk 0:00:11.9]} 37. Rb6 {[%clk 0:01:40.7]} 37... Rb8 {[%clk 0:00:10]} 38.
Re6 {[%clk 0:01:40]} 38... Nd3 {[%clk 0:00:09.6]} 39. Nd6 {[%clk 0:01:36.8]}
39... Nf4 {[%clk 0:00:09.2]} 40. Nf7+ {[%clk 0:01:36.9]} 40... Kg8 {[%clk
0:00:09.4]} 41. Nxd8 {[%clk 0:01:37.3]} 41... Rxd8 {[%clk 0:00:09.2]} 42. Rb6
{[%clk 0:01:35.2]} 42... Nxg2 {[%clk 0:00:08.8]} 43. Kxg2 {[%clk 0:01:35.8]}
43... Rxd5 {[%clk 0:00:09.4]} 44. a4 {[%clk 0:01:36.4]} 44... bxa4 {[%clk
0:00:08.9]} 45. bxa4 {[%clk 0:01:37]} 45... Ra5 {[%clk 0:00:09.5]} 46. Rb4
{[%clk 0:01:35.8]} 46... Kf7 {[%clk 0:00:09.8]} 47. Kg3 {[%clk 0:01:36.4]} 47...
Ke6 {[%clk 0:00:10.2]} 48. h4 {[%clk 0:01:37]} 48... g6 {[%clk 0:00:08.5]} 49.
f4 {[%clk 0:01:36.1]} 49... h5 {[%clk 0:00:07.7]} 50. g5 {[%clk 0:01:35.4]}
50... fxg5 {[%clk 0:00:06.7]} 51. fxg5 {[%clk 0:01:34.7]} 51... Ra6 {[%clk
0:00:05.3]} 52. Kf4 {[%clk 0:01:34.2]} 52... Ra5 {[%clk 0:00:05.3]} 53. Ke4
{[%clk 0:01:34]} 53... Re5+ {[%clk 0:00:04.5]} 54. Kd4 {[%clk 0:01:34.4]} 54...
Ra5 {[%clk 0:00:05.4]} 55. Kc4 {[%clk 0:01:34.2]} 55... Ra6 {[%clk 0:00:05.3]}
56. Kb5 {[%clk 0:01:34.3]} 56... Ra8 {[%clk 0:00:05.2]} 57. a5 {[%clk
0:01:34.4]} 57... Kd6 {[%clk 0:00:05.2]} 58. Rc4 {[%clk 0:01:34]} 58... Rb8+
{[%clk 0:00:04.9]} 59. Ka4 {[%clk 0:01:34.3]} 59... Kd5 {[%clk 0:00:05.1]} 60.
Rb4 {[%clk 0:01:34]} 60... Ra8 {[%clk 0:00:05]} 61. Rb6 {[%clk 0:01:33.4]} 61...
Rg8 {[%clk 0:00:02.4]} 62. a6 {[%clk 0:01:33.2]} 62... Kc5 {[%clk 0:00:02.7]}
63. Ka5 {[%clk 0:01:33.7]} 63... Ra8 {[%clk 0:00:03.1]} 64. Rxg6 {[%clk
0:01:31.9]} 64... Rb8 {[%clk 0:00:03.7]} 65. a7 {[%clk 0:01:31.7]} 65... Rb1
{[%clk 0:00:04.3]} 66. Ka6 {[%clk 0:01:28.3]} 66... Ra1+ {[%clk 0:00:04.2]} 67.
Kb7 {[%clk 0:01:28.8]} 67... Rb1+ {[%clk 0:00:05.1]} 68. Kc8 {[%clk 0:01:27.6]}
68... Ra1 {[%clk 0:00:05.8]} 69. Rg7 {[%clk 0:01:28.1]} 69... Kc6 {[%clk
0:00:05.1]} 70. Kd8 {[%clk 0:01:28]} 70... Kb6 {[%clk 0:00:05.1]} 71. Ke8 {[%clk
0:01:27.5]} 71... Kc6 {[%clk 0:00:04.7]} 72. Kf8 {[%clk 0:01:27.2]} 72... Kd6
{[%clk 0:00:05]} 73. Kg8 {[%clk 0:01:27.7]} 73... Ke6 {[%clk 0:00:05.5]} 74. Kh7
{[%clk 0:01:28.2]} 74... Kf5 {[%clk 0:00:05.8]} 75. Kh6 {[%clk 0:01:27.7]} 75...
Kg4 {[%clk 0:00:06.1]} 76. g6 {[%clk 0:01:23]} 76... Kxh4 {[%clk 0:00:06.5]} 77.
Rf7 {[%clk 0:01:23.4]} 77... Ra6 {[%clk 0:00:03.6]} 78. Kh7 {[%clk 0:01:23.5]}
78... Kg5 {[%clk 0:00:03.7]} 79. g7 {[%clk 0:01:23.7]} 79... Rh6+ {[%clk
0:00:04.3]} 80. Kg8 {[%clk 0:01:23.5]} 80... Ra6 {[%clk 0:00:05]} 81. Kf8 {[%clk
0:01:22.6]} 81... Rg6 {[%clk 0:00:05]} 82. a8=Q {[%clk 0:01:21.3]} 82... h4
{[%clk 0:00:04.8]} 83. Qg2+ {[%clk 0:01:20.6]} 83... Kh5 {[%clk 0:00:05]} 84.
Qf3+ {[%clk 0:01:20.2]} 84... Kh6 {[%clk 0:00:05.1]} 85. Rf6 {[%clk 0:01:18.9]}
85... h3 {[%clk 0:00:05.1]} 86. Rxg6+ {[%clk 0:01:18.8]} 86... Kxg6 {[%clk
0:00:06]} 87. g8=Q+ {[%clk 0:01:19.6]} 87... Kh6 {[%clk 0:00:06.6]} 88. Qgg3
{[%clk 0:01:20.1]} 88... h2 {[%clk 0:00:06.1]} 89. Qf6+ {[%clk 0:01:20.3]} 89...
Kh7 {[%clk 0:00:05.9]} 90. Qfh4# {[%clk 0:01:21.2]} 1-0

[Event "Early-Titled-Tuesday-Blitz-April-23-2024"]
[Site "Chess.com"]
[Date "2024.04.23"]
[Round "5"]
[White "x-7171385435"]
[Black "ilqar_74"]
[Result "0-1"]
[WhiteElo "2151"]
[BlackElo "2749"]
[TimeControl "180+1"]
[EndTime "8:58:37 PDT"]
[Termination "ilqar_74 won by resignation"]

1. d4 {[%clk 0:02:50.2]} 1... Nf6 {[%clk 0:02:59]} 2. c4 {[%clk 0:02:50.2]} 2...
e6 {[%clk 0:02:54.5]} 3. g3 {[%clk 0:02:50.2]} 3... d5 {[%clk 0:02:54.3]} 4. Bg2
{[%clk 0:02:50.3]} 4... Be7 {[%clk 0:02:53.9]} 5. Nf3 {[%clk 0:02:50.9]} 5...
O-O {[%clk 0:02:54.4]} 6. O-O {[%clk 0:02:51.6]} 6... dxc4 {[%clk 0:02:51.9]} 7.
Qc2 {[%clk 0:02:51.9]} 7... a6 {[%clk 0:02:51.6]} 8. a4 {[%clk 0:02:52.4]} 8...
Nc6 {[%clk 0:02:51.7]} 9. Qxc4 {[%clk 0:02:52.1]} 9... Nb4 {[%clk 0:02:51.9]}
10. Rd1 {[%clk 0:02:40.5]} 10... b5 {[%clk 0:02:50.1]} 11. Qb3 {[%clk
0:02:36.9]} 11... Bb7 {[%clk 0:02:49.7]} 12. Nc3 {[%clk 0:02:33.5]} 12... bxa4
{[%clk 0:02:47.6]} 13. Rxa4 {[%clk 0:02:29.7]} 13... a5 {[%clk 0:02:47.7]} 14.
Ne5 {[%clk 0:02:24.2]} 14... Bxg2 {[%clk 0:02:44.9]} 15. Kxg2 {[%clk 0:02:25.1]}
15... Rb8 {[%clk 0:02:29.1]} 16. Qc4 {[%clk 0:02:15.8]} 16... Ra8 {[%clk
0:02:13.8]} 17. e4 {[%clk 0:02:07.1]} 17... Nd7 {[%clk 0:02:11.2]} 18. Nc6
{[%clk 0:01:57.2]} 18... Nb6 {[%clk 0:01:46]} 19. Nxd8 {[%clk 0:01:54.3]} 19...
Nxc4 {[%clk 0:01:45.7]} 20. Nb7 {[%clk 0:01:53]} 20... Rfb8 {[%clk 0:01:38.3]}
21. Nc5 {[%clk 0:01:51.3]} 21... Nb6 {[%clk 0:01:37.4]} 22. Ra1 {[%clk
0:01:46.4]} 22... e5 {[%clk 0:01:31.5]} 23. N3a4 {[%clk 0:01:37.3]} 23... Nc2
{[%clk 0:01:27.6]} 24. Rb1 {[%clk 0:01:37]} 24... exd4 {[%clk 0:01:20.6]} 25.
Rd2 {[%clk 0:01:33.3]} 25... Nxa4 {[%clk 0:01:13.1]} 26. Nxa4 {[%clk 0:01:31.1]}
26... Na3 {[%clk 0:01:11.3]} 27. Ra1 {[%clk 0:01:25.3]} 27... Nb5 {[%clk
0:01:11.4]} 28. b3 {[%clk 0:01:19.1]} 28... Bb4 {[%clk 0:01:08.5]} 29. Rd1
{[%clk 0:01:18]} 29... c5 {[%clk 0:01:04.8]} 30. Bf4 {[%clk 0:01:14.6]} 30...
Rb7 {[%clk 0:01:02.2]} 31. Rac1 {[%clk 0:01:11.9]} 31... Rc8 {[%clk 0:01:01.9]}
32. Rc4 {[%clk 0:01:01.1]} 32... Nc3 {[%clk 0:00:57.2]} 33. Nxc3 {[%clk
0:00:56.9]} 33... Bxc3 {[%clk 0:00:56]} 34. Be5 {[%clk 0:00:53.1]} 34... Rb4
{[%clk 0:00:45]} 35. Rxb4 {[%clk 0:00:43]} 35... axb4 {[%clk 0:00:45.4]} 36. f4
{[%clk 0:00:27.8]} 36... Rc6 {[%clk 0:00:42.1]} 37. Kf3 {[%clk 0:00:19.7]} 37...
f6 {[%clk 0:00:41.7]} 38. Bb8 {[%clk 0:00:19.4]} 38... Rc8 {[%clk 0:00:41.2]}
39. Bd6 {[%clk 0:00:19.4]} 39... Kf7 {[%clk 0:00:40.5]} 40. e5 {[%clk 0:00:20]}
40... f5 {[%clk 0:00:40.2]} 41. g4 {[%clk 0:00:19.1]} 41... g6 {[%clk
0:00:39.8]} 42. gxf5 {[%clk 0:00:18.9]} 42... gxf5 {[%clk 0:00:40.7]} 43. Rg1
{[%clk 0:00:19.1]} 43... c4 {[%clk 0:00:40.1]} 44. bxc4 {[%clk 0:00:18.1]} 44...
Rxc4 {[%clk 0:00:38.3]} 45. Ke2 {[%clk 0:00:18.8]} 45... b3 {[%clk 0:00:37.8]}
46. Kd3 {[%clk 0:00:19.1]} 46... Ra4 {[%clk 0:00:37.4]} 47. Rb1 {[%clk
0:00:18.4]} 47... b2 {[%clk 0:00:36.8]} 48. Kc2 {[%clk 0:00:15.1]} 48... Ra1
{[%clk 0:00:35.4]} 49. Bc5 {[%clk 0:00:03]} 49... Rxb1 {[%clk 0:00:30.8]} 50.
Kxb1 {[%clk 0:00:03.9]} 50... d3 {[%clk 0:00:31.4]} 51. Be3 {[%clk 0:00:04.1]}
51... Ke6 {[%clk 0:00:29.9]} 52. h3 {[%clk 0:00:02.4]} 52... h6 {[%clk
0:00:29.4]} 53. Ka2 {[%clk 0:00:02]} 53... h5 {[%clk 0:00:28.7]} 54. Kb1 {[%clk
0:00:02]} 54... h4 {[%clk 0:00:28]} 55. Ka2 {[%clk 0:00:02.3]} 55... d2 {[%clk
0:00:28.1]} 56. Bxd2 {[%clk 0:00:02.2]} 56... Bxd2 {[%clk 0:00:28.5]} 57. Kxb2
{[%clk 0:00:03.1]} 57... Bxf4 {[%clk 0:00:29.4]} 58. Kc2 {[%clk 0:00:03.1]}
58... Kxe5 {[%clk 0:00:30.3]} 59. Kd3 {[%clk 0:00:03.3]} 59... Bg3 {[%clk
0:00:30.7]} 60. Ke2 {[%clk 0:00:04]} 60... Ke4 {[%clk 0:00:30.7]} 61. Kf1 {[%clk
0:00:04.9]} 61... Kf3 {[%clk 0:00:31]} 62. Kg1 {[%clk 0:00:05.2]} 62... Ke2
{[%clk 0:00:30.5]} 63. Kg2 {[%clk 0:00:05.6]} 63... f4 {[%clk 0:00:30.7]} 64.
Kg1 {[%clk 0:00:06]} 64... f3 {[%clk 0:00:30.4]} 0-1

[Event "Early-Titled-Tuesday-Blitz-April-23-2024"]
[Site "Chess.com"]
[Date "2024.04.23"]
[Round "5"]
[White "JM05C"]
[Black "Skatchkov_V"]
[Result "0-1"]
[WhiteElo "2498"]
[BlackElo "2670"]
[TimeControl "180+1"]
[EndTime "8:58:38 PDT"]
[Termination "Skatchkov_V won by resignation"]

1. e4 {[%clk 0:03:00.4]} 1... e5 {[%clk 0:03:00.1]} 2. Nf3 {[%clk 0:02:50.7]}
2... d5 {[%clk 0:02:59.8]} 3. exd5 {[%clk 0:02:47.3]} 3... e4 {[%clk 0:03:00.7]}
4. Qe2 {[%clk 0:02:46.9]} 4... Nf6 {[%clk 0:03:00.6]} 5. Nc3 {[%clk 0:02:45.4]}
5... Be7 {[%clk 0:03:00.4]} 6. Nxe4 {[%clk 0:02:44.6]} 6... Nxd5 {[%clk
0:03:00.6]} 7. d4 {[%clk 0:02:32.5]} 7... O-O {[%clk 0:03:00.5]} 8. Bd2 {[%clk
0:02:26.5]} 8... Re8 {[%clk 0:03:00.1]} 9. O-O-O {[%clk 0:02:11.9]} 9... Nc6
{[%clk 0:02:52.6]} 10. Kb1 {[%clk 0:01:54.5]} 10... Bf5 {[%clk 0:02:47.2]} 11.
Ng3 {[%clk 0:01:47.2]} 11... Bg6 {[%clk 0:02:43.5]} 12. Qc4 {[%clk 0:01:40.3]}
12... Nb6 {[%clk 0:02:38.5]} 13. Qb3 {[%clk 0:01:34.6]} 13... Nxd4 {[%clk
0:02:32]} 14. Nxd4 {[%clk 0:01:25.7]} 14... Qxd4 {[%clk 0:02:32.9]} 15. Bb5
{[%clk 0:01:22.9]} 15... Red8 {[%clk 0:02:25.6]} 16. Rhf1 {[%clk 0:01:03.1]}
16... Bh4 {[%clk 0:01:46.9]} 17. a3 {[%clk 0:00:58.4]} 17... c6 {[%clk
0:01:41.4]} 18. Be2 {[%clk 0:00:54.7]} 18... Qd5 {[%clk 0:01:05.2]} 19. Qxd5
{[%clk 0:00:52.7]} 19... Nxd5 {[%clk 0:01:03.1]} 20. Bf3 {[%clk 0:00:50.7]}
20... Bf6 {[%clk 0:00:56.1]} 21. Ne4 {[%clk 0:00:48.2]} 21... Be5 {[%clk
0:00:56.4]} 22. g3 {[%clk 0:00:46.2]} 22... Nb6 {[%clk 0:00:45.8]} 23. Nc5
{[%clk 0:00:35.7]} 23... Nc4 {[%clk 0:00:42.9]} 24. Bc1 {[%clk 0:00:34.4]} 24...
b6 {[%clk 0:00:34.8]} 25. Nb3 {[%clk 0:00:34.3]} 25... h6 {[%clk 0:00:24.2]} 26.
Bxc6 {[%clk 0:00:34.2]} 26... Rxd1 {[%clk 0:00:22.5]} 27. Rxd1 {[%clk
0:00:34.1]} 27... Rc8 {[%clk 0:00:23.4]} 28. Bd7 {[%clk 0:00:29.9]} 28... Nxa3+
{[%clk 0:00:17.8]} 29. Ka2 {[%clk 0:00:20.3]} 29... Rd8 {[%clk 0:00:12.2]} 30.
Kxa3 {[%clk 0:00:18.5]} 30... Bxc2 {[%clk 0:00:12.8]} 31. Rd5 {[%clk 0:00:16.7]}
31... Bf6 {[%clk 0:00:10.4]} 32. Nd4 {[%clk 0:00:15.4]} 32... Be4 {[%clk
0:00:08.4]} 33. Nc6 {[%clk 0:00:09]} 33... Bxd5 {[%clk 0:00:08.6]} 34. Nxd8
{[%clk 0:00:09.5]} 34... Bxd8 {[%clk 0:00:09.5]} 35. Be3 {[%clk 0:00:10.1]}
35... Kf8 {[%clk 0:00:09.4]} 36. b4 {[%clk 0:00:10.5]} 36... Ke7 {[%clk
0:00:09.8]} 37. Bf5 {[%clk 0:00:11.4]} 37... Bc7 {[%clk 0:00:07.2]} 38. Bd3
{[%clk 0:00:12]} 38... Bd6 {[%clk 0:00:06.8]} 39. Ka4 {[%clk 0:00:12]} 39...
Bc6+ {[%clk 0:00:06.4]} 40. Kb3 {[%clk 0:00:12.6]} 40... a5 {[%clk 0:00:05]} 41.
b5 {[%clk 0:00:13]} 41... Bd5+ {[%clk 0:00:04.5]} 42. Kc3 {[%clk 0:00:13.5]}
42... Bb4+ {[%clk 0:00:02.2]} 43. Kd4 {[%clk 0:00:12.9]} 43... Be6 {[%clk
0:00:01.7]} 44. Ke5 {[%clk 0:00:13.4]} 44... Bd6+ {[%clk 0:00:02.3]} 45. Ke4
{[%clk 0:00:13.3]} 45... Bc5 {[%clk 0:00:02.9]} 46. Bxc5+ {[%clk 0:00:12.9]}
46... bxc5 {[%clk 0:00:03.8]} 47. b6 {[%clk 0:00:13.8]} 47... Kd7 {[%clk
0:00:04.7]} 48. Bb5+ {[%clk 0:00:13.6]} 48... Kc8 {[%clk 0:00:05.2]} 49. Bc6
{[%clk 0:00:14]} 49... Kb8 {[%clk 0:00:05.4]} 50. Kd3 {[%clk 0:00:14.4]} 50...
Bb3 {[%clk 0:00:04.9]} 51. Kc3 {[%clk 0:00:14.8]} 51... a4 {[%clk 0:00:05.6]}
52. f4 {[%clk 0:00:13.6]} 52... f6 {[%clk 0:00:05.5]} 53. g4 {[%clk 0:00:13.5]}
53... c4 {[%clk 0:00:04.8]} 54. h4 {[%clk 0:00:13.6]} 54... a3 {[%clk
0:00:05.1]} 55. g5 {[%clk 0:00:14]} 55... a2 {[%clk 0:00:05.7]} 56. Kb2 {[%clk
0:00:14.2]} 56... c3+ {[%clk 0:00:05.9]} 57. Ka1 {[%clk 0:00:13]} 57... c2
{[%clk 0:00:06.4]} 0-1

[Event "Early-Titled-Tuesday-Blitz-April-23-2024"]
[Site "Chess.com"]
[Date "2024.04.23"]
[Round "5"]
[White "Artemiki"]
[Black "lucasran"]
[Result "0-1"]
[WhiteElo "2456"]
[BlackElo "2618"]
[TimeControl "180+1"]
[EndTime "8:58:38 PDT"]
[Termination "lucasran won on time"]

1. e4 {[%clk 0:03:00.9]} 1... c6 {[%clk 0:02:36.3]} 2. d4 {[%clk 0:02:59.1]}
2... d5 {[%clk 0:02:37.2]} 3. e5 {[%clk 0:02:59.6]} 3... Bf5 {[%clk 0:02:36.4]}
4. h4 {[%clk 0:03:00.1]} 4... h5 {[%clk 0:02:35.7]} 5. Bd3 {[%clk 0:03:00.6]}
5... Bxd3 {[%clk 0:02:35.1]} 6. Qxd3 {[%clk 0:03:01.5]} 6... Qa5+ {[%clk
0:02:27.9]} 7. Nd2 {[%clk 0:03:00.2]} 7... Qa6 {[%clk 0:02:27.6]} 8. c4 {[%clk
0:02:59.6]} 8... e6 {[%clk 0:02:22.5]} 9. Ngf3 {[%clk 0:02:59.9]} 9... Ne7
{[%clk 0:02:09.3]} 10. O-O {[%clk 0:02:59.4]} 10... Nf5 {[%clk 0:02:09.7]} 11.
a4 {[%clk 0:02:54.9]} 11... Be7 {[%clk 0:02:02.8]} 12. b3 {[%clk 0:02:54.9]}
12... Nd7 {[%clk 0:02:02.4]} 13. Ba3 {[%clk 0:02:54.3]} 13... Bxa3 {[%clk
0:01:57.1]} 14. Rxa3 {[%clk 0:02:55.2]} 14... Qa5 {[%clk 0:01:55.9]} 15. b4
{[%clk 0:02:46.5]} 15... Qd8 {[%clk 0:01:33.7]} 16. g3 {[%clk 0:02:28.1]} 16...
dxc4 {[%clk 0:01:32.3]} 17. Nxc4 {[%clk 0:02:25.4]} 17... Nb6 {[%clk 0:01:32.4]}
18. Ne3 {[%clk 0:02:17.6]} 18... Ne7 {[%clk 0:01:12.7]} 19. Ng5 {[%clk
0:02:10.3]} 19... Qd7 {[%clk 0:01:06.8]} 20. b5 {[%clk 0:01:55]} 20... Nbd5
{[%clk 0:01:03.6]} 21. Nc4 {[%clk 0:01:44.3]} 21... Nf5 {[%clk 0:01:00.8]} 22.
Ne4 {[%clk 0:01:03]} 22... O-O {[%clk 0:00:58.2]} 23. Ncd6 {[%clk 0:01:01.3]}
23... Nde7 {[%clk 0:00:49.3]} 24. bxc6 {[%clk 0:00:54.1]} 24... Qxc6 {[%clk
0:00:33.4]} 25. Rc3 {[%clk 0:00:29.7]} 25... Qxa4 {[%clk 0:00:23.4]} 26. Rc7
{[%clk 0:00:30]} 26... Nxd6 {[%clk 0:00:19.2]} 27. Nxd6 {[%clk 0:00:23.3]} 27...
Nf5 {[%clk 0:00:19.4]} 28. Nxf5 {[%clk 0:00:19.4]} 28... exf5 {[%clk 0:00:20.3]}
29. Qxf5 {[%clk 0:00:19.9]} 29... Qxd4 {[%clk 0:00:19.3]} 30. Rxb7 {[%clk
0:00:17.7]} 30... Qd5 {[%clk 0:00:14.4]} 31. Re7 {[%clk 0:00:07.4]} 31... a5
{[%clk 0:00:13.3]} 32. Qxh5 {[%clk 0:00:07.3]} 32... a4 {[%clk 0:00:13.4]} 33.
Rd1 {[%clk 0:00:06.1]} 33... Qb3 {[%clk 0:00:11.8]} 34. Rdd7 {[%clk 0:00:05.7]}
34... a3 {[%clk 0:00:11.4]} 35. e6 {[%clk 0:00:06.4]} 35... a2 {[%clk
0:00:04.4]} 36. exf7+ {[%clk 0:00:03.5]} 36... Rxf7 {[%clk 0:00:05]} 37. Rxf7
{[%clk 0:00:03.2]} 37... a1=Q+ {[%clk 0:00:05.1]} 38. Kh2 {[%clk 0:00:03.4]}
38... Qbb1 {[%clk 0:00:04.3]} 39. Rxg7+ {[%clk 0:00:02.7]} 39... Qxg7 {[%clk
0:00:03.7]} 40. Qd5+ {[%clk 0:00:02.4]} 40... Kh7 {[%clk 0:00:01.8]} 41. Rxg7+
{[%clk 0:00:02.8]} 41... Kxg7 {[%clk 0:00:02.6]} 42. Qxa8 {[%clk 0:00:03]} 42...
Qb2 {[%clk 0:00:03]} 43. Qf3 {[%clk 0:00:02.8]} 43... Qc2 {[%clk 0:00:02.6]} 44.
Qf4 {[%clk 0:00:03.2]} 44... Qb2 {[%clk 0:00:03]} 45. h5 {[%clk 0:00:03.6]}
45... Qc2 {[%clk 0:00:03.4]} 46. Kg2 {[%clk 0:00:03.5]} 46... Qb2 {[%clk
0:00:03.9]} 47. Qg5+ {[%clk 0:00:04.1]} 47... Kh7 {[%clk 0:00:03.8]} 48. Qf5+
{[%clk 0:00:04.1]} 48... Kh8 {[%clk 0:00:03.6]} 49. Qf6+ {[%clk 0:00:03.6]}
49... Qxf6 {[%clk 0:00:02.9]} 50. g4 {[%clk 0:00:02.6]} 50... Qg5 {[%clk
0:00:03.1]} 51. Kg3 {[%clk 0:00:02.7]} 51... Qf6 {[%clk 0:00:03.1]} 52. f4
{[%clk 0:00:03.1]} 52... Qe7 {[%clk 0:00:04]} 53. g5 {[%clk 0:00:03.3]} 53...
Kg7 {[%clk 0:00:04.3]} 54. Kg4 {[%clk 0:00:04.2]} 54... Qd7+ {[%clk 0:00:04.7]}
55. f5 {[%clk 0:00:02.8]} 55... Qd4+ {[%clk 0:00:05.6]} 56. Kg3 {[%clk
0:00:03.1]} 56... Qe4 {[%clk 0:00:06]} 57. h6+ {[%clk 0:00:02.8]} 57... Kh7
{[%clk 0:00:06.2]} 58. f6 {[%clk 0:00:03.3]} 58... Kg6 {[%clk 0:00:06.7]} 59. f7
{[%clk 0:00:02.1]} 59... Kxf7 {[%clk 0:00:06.8]} 0-1